bitfinex-derivatives/quotes_SOLF0:USTF0_20250731
["timestamp","ask_amount","ask_price","bid_price","bid_amount"]
[1753993476736,3.3,174.94,174.89,3.28]
[1753993477146,3.3,174.94,174.93,5.7187]
[1753993477339,7.37786413,174.98,174.9,3.28]
[1753993477545,3.3,174.92,174.9,3.28]
[1753993477845,7.37786413,174.96,174.88,3.28]
[1753993478136,3.3,174.93,174.88,3.28]
[1753993478344,3.3,174.93,174.86,3.28]
[1753993478938,3.3,174.93,174.87,3.28]
[1753993479443,3.3,174.91,174.9,3.28]
[1753993479945,3.3,174.91,174.9,8.9997]
[1753993480144,3.3,174.94,174.9,3.28]
[1753993480443,3.3,174.97,174.96,5.7176]
[1753993480638,3.3,174.98,174.92,3.28]
[1753993480840,3.3,174.96,174.93,3.28]
[1753993481039,3.3,174.94,174.93,8.9986]
[1753993484746,3.3,174.99,174.96,5.7175]
[1753993485046,4.12815807,174.98,174.96,5.7175]
[1753993485240,7.42815807,174.97,174.96,5.7175]
[1753993485644,3.3,174.99,174.98,5.717]
[1753993485850,3.3,174.99,174.98,8.997]
[1753993488550,492.8,175.01,174.99,5.7164]
[1753993488745,3.3,175.0,174.99,8.9964]
[1753993489948,3.3,175.0,174.97,3.28]
[1753993490153,492.8,175.01,174.97,3.28]
[1753993490349,3.3,174.99,174.98,8.9969]
[1753993491354,3.3,174.99,174.98,3.28]
[1753993491558,3.3,174.99,174.97,5.7172]
[1753993491752,114.3363,175.01,174.89,55.4397]
[1753993491753,3.3,174.97,174.93,7.37786413]
[1753993491957,3.3,174.97,174.96,8.9975]
[1753993492360,114.3363,175.01,174.96,8.9975]
[1753993492561,111.92,175.01,174.96,3.28]
[1753993492755,111.92,175.01,174.98,3.28]
[1753993493061,108.62,175.01,175.0,8.9963]
[1753993493667,108.54,175.05,175.0,5.7163]
[1753993493864,3.3,175.02,175.01,3.28]
[1753993495256,3.3,175.02,174.99,7.80847068]
[1753993495461,3.3,175.0,174.98,3.28]
[1753993495663,3.3,174.98,174.97,7.80847068]
[1753993496264,5.7155,175.03,174.97,13.52557068]
[1753993496465,3.3,174.99,174.98,3.28]
[1753993497364,3.3,174.99,174.98,8.9971]
[1753993497565,3.3,175.01,174.98,8.9971]
[1753993497761,3.3,175.0,174.99,3.28]
[1753993498158,3.05,175.02,175.0,3.3]
[1753993498362,3.05,175.04,174.98,3.3]
[1753993498666,3.05,175.02,174.99,3.3]
[1753993499669,3.05,175.0,174.96,3.3]
[1753993499865,8.66242887,174.99,174.93,3.3]
[1753993500065,3.05,174.98,174.91,3.3]
[1753993500263,4.1342381,174.98,174.94,4.52847068]
[1753993500456,3.05,174.98,174.95,3.3]
[1753993500859,108.5,174.99,174.96,7.82847068]
[1753993501168,3.05,175.01,174.98,4.52847068]
[1753993501365,3.05,175.02,175.0,3.3]
[1753993501571,108.5,175.04,175.0,3.3]
[1753993501870,3.05,175.01,175.0,3.3]
[1753993503368,3.05,175.03,175.01,3.3]
[1753993503563,3.05,175.01,174.99,3.3]
[1753993503762,3.05,175.0,174.99,3.3]
[1753993504369,3.05,175.0,174.98,4.52847068]
[1753993504583,3.05,174.99,174.98,3.3]
[1753993506079,3.05,175.03,174.95,3.3]
[1753993506369,3.05,175.01,174.98,3.3]
[1753993506575,3.05,174.99,174.98,3.3]
[1753993507075,3.05,174.99,174.96,4.52847068]
[1753993507374,3.05,174.98,174.97,3.3]
[1753993507676,3.05,175.01,174.98,3.3]
[1753993507973,3.05,175.01,174.96,10.24577068]
[1753993507974,4.06486927,175.0,174.96,4.52847068]
[1753993508273,3.05,174.99,174.97,5.7172]
[1753993508571,3.05,174.99,174.96,7.82847068]
[1753993508771,3.05,175.01,174.97,3.3]
[1753993509071,3.05,174.99,174.98,3.3]
[1753993509678,3.05,174.99,174.96,7.82847068]
[1753993509878,3.05,175.0,174.97,3.3]
[1753993510266,5.716,175.01,174.97,3.3]
[1753993510267,4.07101883,174.99,174.97,3.3]
[1753993510472,3.05,174.98,174.97,3.3]
[1753993511676,3.05,174.98,174.95,3.3]
[1753993511677,3.05,174.97,174.95,3.3]
[1753993511975,3.05,174.95,174.9,4.52847068]
[1753993512175,3.05,174.97,174.91,3.3]
[1753993512376,3.05,175.01,174.97,3.3]
[1753993512577,4.07353254,175.0,174.97,3.3]
[1753993512773,4.07321391,174.99,174.96,3.3]
[1753993512979,3.05,174.97,174.94,3.3]
[1753993513171,3.05,174.95,174.94,3.3]
[1753993514077,3.05,174.94,174.93,3.3]
[1753993514277,3.05,174.96,174.93,3.3]
[1753993515071,3.05,174.96,174.94,3.3]
[1753993515270,3.05,174.96,174.95,3.3]
[1753993515666,7.12255142,174.96,174.95,3.3]
[1753993515872,3.05,174.95,174.94,3.3]
[1753993516370,3.05,174.95,174.92,5.7187]
[1753993516573,3.05,174.94,174.93,3.3]
[1753993517570,3.05,174.96,174.93,9.0186]
[1753993517770,3.05,174.96,174.95,3.3]
[1753993517970,7.12237376,174.96,174.95,3.3]
[1753993518178,3.05,174.99,174.95,3.3]
[1753993518378,3.05,174.99,174.97,3.3]
[1753993518767,3.05,174.99,174.97,5.7171]
[1753993519172,3.05,174.99,174.98,3.3]
[1753993519474,3.05,174.99,174.88,55.4398]
[1753993519475,3.05,174.98,174.95,3.3]
[1753993519779,3.05,175.0,174.95,5.7177]
[1753993519967,3.05,174.98,174.95,3.3]
[1753993520165,3.05,174.96,174.93,5.7184]
[1753993520372,3.05,174.95,174.94,3.3]
[1753993521573,3.05,174.95,174.93,5.7184]
[1753993521773,3.05,174.94,174.93,3.3]
[1753993521978,4.52847068,174.98,174.9,4.52847068]
[1753993522176,3.05,174.96,174.91,3.3]
[1753993522373,7.12474805,174.95,174.91,3.3]
[1753993522681,3.05,174.99,174.93,3.3]
[1753993522879,3.05,174.97,174.93,3.3]
[1753993523071,3.05,174.95,174.93,3.3]
[1753993523267,3.05,174.94,174.93,3.3]
[1753993523470,9.28967789,175.0,174.93,3.3]
[1753993523471,3.05,174.99,174.93,3.3]
[1753993523674,4.07579883,174.98,174.84,55.443]
[1753993523883,3.05,174.99,174.95,4.52847068]
[1753993524080,4.07640607,174.98,174.96,3.3]
[1753993524379,4.07640607,174.98,174.95,4.52847068]
[1753993524380,3.05,174.99,174.98,3.3]
[1753993524579,7.12789183,174.99,174.98,3.3]
[1753993524774,113.16120721,175.04,174.97,4.52847068]
[1753993524977,4.07810675,175.03,174.98,3.3]
[1753993525179,7.12810675,175.02,174.99,3.3]
[1753993525376,3.05,175.0,174.99,3.3]
[1753993525577,7.12810675,175.0,174.99,3.3]
[1753993525772,4.07810675,175.0,174.97,9.0171]
[1753993525982,7.12810675,174.99,174.97,9.0171]
[1753993526177,7.12810675,174.98,174.97,3.3]
[1753993527280,7.12810675,174.98,174.96,5.7174]
[1753993527480,7.12810675,174.97,174.96,3.3]
[1753993528083,7.12810675,174.97,174.96,9.0176]
[1753993528384,3.14,174.99,174.96,3.3]
[1753993528580,4.07879047,174.98,174.96,3.3]
[1753993528780,3.14,174.99,174.97,5.717]
[1753993528981,4.07878706,174.98,174.97,5.717]
[1753993529185,4.07980365,174.98,174.97,5.717]
[1753993529480,4.07980365,174.98,174.97,8.917]
[1753993529877,7.21980365,174.98,174.91,3.2]
[1753993530076,7.21980365,174.98,174.87,59.96937068]
[1753993530077,4.07960317,174.97,174.94,3.2]
[1753993530273,3.14,174.98,174.94,3.2]
[1753993530473,4.08004138,174.97,174.96,8.9174]
[1753993530781,3.14,174.98,174.97,3.2]
[1753993530984,7.22027568,174.98,174.97,8.9172]
[1753993531686,3.14,174.97,174.94,3.2]
[1753993531987,3.14,174.95,174.94,3.2]
[1753993532181,7.22027568,174.95,174.94,3.2]
[1753993532376,3.14,174.97,174.91,4.52847068]
[1753993532585,4.08176425,174.96,174.92,3.2]
[1753993532889,3.14,174.97,174.93,4.52847068]
[1753993533088,4.08249052,174.96,174.95,5.7178]
[1753993533380,7.22249052,174.96,174.95,5.7178]
[1753993533581,7.22249052,174.96,174.95,8.9178]
[1753993533980,3.14,174.95,174.94,8.9181]
[1753993534181,7.22249052,174.95,174.94,8.9181]
[1753993534783,3.14,174.94,174.92,3.2]
[1753993534987,3.14,174.93,174.92,3.2]
[1753993535874,4.52847068,174.95,174.89,3.2]
[1753993536075,3.14,174.93,174.9,3.2]
[1753993536285,4.52847068,174.95,174.9,3.2]
[1753993536286,3.14,174.91,174.9,3.2]
[1753993536986,3.14,174.91,174.9,8.9195]
[1753993538585,3.14,174.91,174.89,5.7198]
[1753993538785,3.14,174.9,174.89,3.2]
[1753993539088,4.52847068,174.95,174.87,4.52847068]
[1753993539089,10.24647068,174.95,174.9,5.7193]
[1753993539287,3.14,174.93,174.9,8.9193]
[1753993539482,3.14,174.91,174.9,8.9193]
[1753993539682,3.14,174.93,174.91,8.9192]
[1753993539982,7.26789843,174.92,174.91,8.9192]
[1753993542388,4.12789843,174.92,174.91,13.44767068]
[1753993542590,3.14,174.95,174.94,8.9182]
[1753993542984,7.26590824,174.95,174.94,8.9182]
[1753993543688,7.26590824,174.95,174.94,3.2]
[1753993544188,3.14,174.94,174.93,8.9184]
[1753993544389,7.26590824,174.94,174.93,8.9184]
[1753993545288,4.12590824,174.94,174.93,8.9184]
[1753993545485,3.14,174.95,174.94,8.918]
[1753993545690,7.26885551,174.95,174.94,3.2]
[1753993545889,3.14,174.94,174.91,4.52847068]
[1753993546092,3.14,174.94,174.93,3.2]
[1753993546293,7.26885551,174.94,174.93,3.2]
[1753993547294,7.26885551,174.94,174.93,8.9183]
[1753993548192,4.12885551,174.94,174.93,8.9183]
[1753993548597,3.14,174.97,174.96,3.2]
[1753993548797,7.26867471,174.97,174.96,3.2]
[1753993549996,3.14,174.96,174.95,3.2]
[1753993550194,7.26867471,174.96,174.95,3.2]
[1753993550798,4.12867471,174.96,174.95,3.2]
[1753993551092,4.76120721,175.02,174.95,3.2]
[1753993551296,117.82981544,175.04,175.01,3.2]
[1753993551297,3.14,175.03,175.01,3.2]
[1753993551492,4.76120721,175.06,175.01,3.2]
[1753993551797,3.14,175.04,175.01,3.2]
[1753993552396,3.14,175.03,175.02,3.2]
[1753993552602,3.14,175.04,175.03,3.2]
[1753993553196,3.14,175.04,174.99,7.72847068]
[1753993553396,3.14,175.03,175.0,3.2]
[1753993553696,8.8548,175.04,175.0,5.7159]
[1753993553889,3.14,175.05,175.01,3.2]
[1753993554090,388.76847068,175.09,175.02,3.2]
[1753993554091,3.14,175.04,175.02,3.2]
[1753993554286,3.14,175.04,175.03,3.2]
[1753993554686,3.14,175.04,175.01,3.2]
[1753993554885,4.76120721,175.06,175.0,4.52847068]
[1753993555095,3.14,175.03,175.02,3.2]
[1753993555493,3.14,175.02,175.0,7.72847068]
[1753993555794,3.14,175.01,175.0,7.72847068]
[1753993556892,5.7151,175.03,175.0,4.52847068]
[1753993557090,3.14,175.01,175.0,4.52847068]
[1753993557489,3.14,175.01,175.0,3.2]
[1753993558292,5.7154,175.03,175.0,3.25]
[1753993558500,3.21,175.01,175.0,3.25]
[1753993558992,5.7154,175.03,175.0,8.9661]
[1753993558993,3.21,175.03,175.0,8.9661]
[1753993559193,3.21,175.02,175.01,3.25]
[1753993559591,4.76120721,175.06,175.01,10.24427068]
[1753993559793,3.21,175.04,175.03,3.25]
[1753993559998,5.7139,175.07,175.03,7.77847068]
[1753993560190,3.21,175.05,175.04,3.25]
[1753993560395,4.76120721,175.08,175.03,7.77847068]
[1753993560588,3.21,175.05,175.03,7.77847068]
[1753993561191,3.21,175.05,175.01,13.49407068]
[1753993561390,3.21,175.05,175.02,8.9654]
[1753993562595,3.21,175.04,175.03,8.9651]
[1753993562900,3.21,175.07,175.03,8.9651]
[1753993563094,3.21,175.05,175.03,3.25]
[1753993563301,4.10807393,175.04,175.01,7.77847068]
[1753993563499,4.10807393,175.04,174.96,4.52847068]
[1753993563500,3.21,175.02,174.99,7.77847068]
[1753993564497,3.21,175.05,174.99,4.52847068]
[1753993564701,3.21,175.03,175.01,3.25]
[1753993564900,3.21,175.02,175.01,3.25]
[1753993565501,5.7152,175.03,175.0,8.966]
[1753993565702,3.21,175.01,175.0,8.966]
[1753993567805,3.21,175.01,175.0,3.25]
[1753993568104,9.28967789,175.07,174.99,4.52847068]
[1753993568299,3.21,175.05,175.04,5.7147]
[1753993568501,7.28139852,175.05,175.04,3.25]
[1753993569207,3.21,175.04,175.03,13.49337068]
[1753993569810,3.21,175.04,175.03,8.9649]
[1753993570012,501.64967789,175.09,175.03,8.9649]
[1753993570013,3.21,175.06,175.05,3.25]
[1753993571208,3.21,175.07,175.06,3.25]
[1753993571407,3.21,175.05,175.04,3.25]
[1753993571815,3.21,175.05,175.04,8.9646]
[1753993572017,3.21,175.08,175.03,4.52847068]
[1753993572319,3.21,175.06,175.05,3.25]
[1753993572711,3.21,175.06,175.05,8.9643]
[1753993573213,384.24,175.09,175.03,4.52847068]
[1753993573516,3.21,175.07,175.06,3.25]
[1753993575115,8.9238,175.07,175.06,3.25]
[1753993575421,8.9238,175.07,175.02,3.25]
[1753993575422,3.21,175.06,175.02,3.25]
[1753993575611,3.21,175.06,175.03,3.25]
[1753993576722,5.7143,175.06,175.03,8.9649]
[1753993577016,3.21,175.04,175.03,8.9649]
[1753993577617,3.21,175.04,175.03,3.25]
[1753993580024,8.9248,175.04,175.03,3.25]
[1753993580225,5.7148,175.04,175.01,10.24407068]
[1753993580420,3.21,175.03,175.02,3.25]
[1753993581222,3.21,175.03,174.91,55.4375]
[1753993581223,5.7151,175.03,175.0,5.7161]
[1753993581424,3.21,175.02,175.01,3.25]
[1753993581925,3.21,175.02,175.01,8.9658]
[1753993582619,3.21,175.02,175.01,3.25]
[1753993582825,3.21,175.02,175.0,8.9659]
[1753993583024,3.21,175.01,175.0,8.9659]
[1753993583223,5.7149,175.04,175.01,5.7157]
[1753993583428,3.21,175.03,175.01,5.7157]
[1753993583822,3.21,175.03,175.02,3.25]
[1753993584729,8.9251,175.03,175.02,3.25]
[1753993586024,3.21,175.03,175.02,3.25]
[1753993586226,8.9248,175.04,175.03,3.25]
[1753993586529,12.99780351,175.04,175.03,3.25]
[1753993586722,8.9248,175.04,175.03,3.25]
[1753993586924,12.99860137,175.04,175.03,3.25]
[1753993587323,4.07380137,175.04,175.01,8.9656]
[1753993587525,3.21,175.04,175.02,3.25]
[1753993588225,8.9248,175.04,175.03,3.25]
[1753993588629,3.25,175.03,175.02,3.16]
[1753993589025,8.9651,175.03,175.02,3.16]
[1753993589329,4.76120721,175.08,175.02,4.52847068]
[1753993589523,3.25,175.08,175.05,3.16]
[1753993589727,111.15,175.08,175.05,3.16]
[1753993589927,3.25,175.07,175.04,7.68847068]
[1753993590123,3.25,175.06,175.0,3.16]
[1753993590324,3.25,175.06,175.01,3.16]
[1753993590325,3.25,175.04,175.01,3.16]
[1753993590526,3.25,175.02,175.01,3.16]
[1753993590931,3.25,175.01,174.98,3.16]
[1753993591236,3.25,174.99,174.96,3.16]
[1753993591429,3.25,174.97,174.96,3.16]
[1753993591733,3.25,174.97,174.92,3.16]
[1753993591922,3.25,174.97,174.93,5.7181]
[1753993592126,3.25,174.97,174.92,3.16]
[1753993593129,3.25,174.97,174.95,5.7176]
[1753993593329,111.13,174.98,174.97,3.16]
[1753993593533,115.21053319,174.98,174.97,3.16]
[1753993593735,7.33053319,174.98,174.97,3.16]
[1753993593932,115.19053319,174.98,174.97,3.16]
[1753993594838,117.65723319,174.98,174.96,3.16]
[1753993595029,4.08053319,174.97,174.96,3.16]
[1753993595837,7.33053319,174.97,174.96,3.16]
[1753993599234,3.25,174.96,174.94,3.16]
[1753993599635,107.86,174.98,174.94,3.16]
[1753993599835,4.10677616,174.97,174.94,3.16]
[1753993600036,111.11,174.98,174.94,3.16]
[1753993600236,4.10651292,174.97,174.95,5.7174]
[1753993600537,111.11,174.98,174.97,3.16]
[1753993600736,115.21591629,174.98,174.97,3.16]
[1753993601143,120.93251629,174.98,174.97,3.16]
[1753993601445,3.25,174.97,174.96,3.16]
[1753993601635,7.35591629,174.97,174.96,3.16]
[1753993602543,7.35591629,174.97,174.94,5.7178]
[1753993602746,3.25,174.96,174.95,3.16]
[1753993603137,7.35459654,174.96,174.95,3.16]
[1753993603338,3.25,174.95,174.91,3.16]
[1753993603545,3.25,174.93,174.91,3.16]
[1753993604043,3.25,174.93,174.89,3.16]
[1753993604343,3.25,174.92,174.9,3.16]
[1753993604547,111.07,174.91,174.9,3.16]
[1753993606734,3.25,174.93,174.9,3.16]
[1753993606937,111.05,174.92,174.9,3.16]
[1753993608036,111.05,174.92,174.88,10.24817068]
[1753993608239,111.05,174.92,174.91,3.16]
[1753993609337,111.05,174.92,174.89,3.16]
[1753993609641,3.25,174.91,174.86,4.52847068]
[1753993609938,5.7191,174.91,174.88,3.16]
[1753993610145,3.25,174.9,174.88,3.16]
[1753993610538,107.8,174.92,174.88,3.16]
[1753993610539,3.25,174.89,174.88,3.16]
[1753993610735,3.25,174.89,174.86,13.40887068]
[1753993610936,5.7188,174.91,174.86,10.24887068]
[1753993611140,107.8,174.92,174.84,3.16]
[1753993611141,3.25,174.89,174.84,3.16]
[1753993611645,3.25,174.88,174.85,3.16]
[1753993611844,3.25,174.86,174.84,5.7209]
[1753993612040,113.5002,174.87,174.83,4.52847068]
[1753993612247,3.25,174.85,174.83,4.52847068]
[1753993612539,3.25,174.86,174.81,7.68847068]
[1753993612742,5.7209,174.85,174.82,3.16]
[1753993612946,3.25,174.84,174.82,3.16]
[1753993613142,3.25,174.83,174.82,3.16]
[1753993613338,3.25,174.83,174.8,3.16]
[1753993613640,3.25,174.81,174.73,3.16]
[1753993613841,3.25,174.77,174.74,3.16]
[1753993614140,3.25,174.75,174.74,3.16]
[1753993615242,3.25,174.75,174.71,5.7253]
[1753993615442,3.25,174.74,174.71,3.16]
[1753993615644,3.25,174.75,174.68,3.16]
[1753993615844,3.25,174.75,174.7,3.16]
[1753993616046,3.25,174.75,174.71,3.16]
[1753993616347,3.25,174.74,174.72,3.16]
[1753993616542,3.25,174.74,174.73,3.16]
[1753993616748,110.99,174.75,174.71,4.52847068]
[1753993616948,3.25,174.75,174.72,3.16]
[1753993617453,107.78,174.76,174.71,10.25357068]
[1753993617748,107.78,174.76,174.72,5.725]
[1753993617953,3.25,174.75,174.74,3.16]
[1753993620655,107.78,174.76,174.75,3.21]
[1753993620855,3.03,174.78,174.74,3.21]
[1753993621155,3.03,174.77,174.73,10.25287068]
[1753993621355,3.03,174.76,174.75,3.21]
[1753993621554,110.79,174.78,174.75,3.21]
[1753993621757,110.81,174.78,174.75,3.21]
[1753993621954,3.03,174.77,174.74,3.21]
[1753993622151,3.03,174.77,174.75,5.724]
[1753993622453,110.81,174.79,174.76,3.21]
[1753993622649,3.03,174.79,174.78,3.21]
[1753993623453,3.03,174.79,174.73,4.52847068]
[1753993623660,3.03,174.79,174.74,3.21]
[1753993623858,3.03,174.77,174.74,3.21]
[1753993624053,3.03,174.77,174.72,3.21]
[1753993624247,3.03,174.77,174.73,3.21]
[1753993624453,3.03,174.75,174.74,3.21]
[1753993624652,3.03,174.75,174.72,3.21]
[1753993624854,107.76,174.76,174.72,3.21]
[1753993625058,3.03,174.75,174.73,3.21]
[1753993625252,107.76,174.76,174.73,3.21]
[1753993625447,384.32,174.85,174.63,151.76]
[1753993625448,3.03,174.77,174.75,3.21]
[1753993625756,3.03,174.78,174.75,3.21]
[1753993626556,107.76,174.79,174.76,3.21]
[1753993626557,3.03,174.77,174.76,3.21]
[1753993626756,3.03,174.77,174.74,3.21]
[1753993626959,3.03,174.77,174.76,3.21]
[1753993629657,107.74,174.8,174.76,4.52847068]
[1753993629960,3.03,174.79,174.78,3.21]
[1753993630261,3.03,174.79,174.75,3.21]
[1753993630559,3.03,174.79,174.76,3.21]
[1753993630955,5.723,174.79,174.76,3.21]
[1753993631259,3.03,174.78,174.76,3.21]
[1753993631455,3.03,174.77,174.76,3.21]
[1753993632861,5.7218,174.82,174.77,8.9332]
[1753993633058,3.03,174.81,174.8,3.21]
[1753993633258,3.03,174.81,174.78,3.21]
[1753993633761,3.03,174.79,174.78,3.21]
[1753993634161,3.03,174.81,174.79,3.21]
[1753993634353,3.03,174.8,174.79,3.21]
[1753993635159,8.7524,174.8,174.79,3.21]
[1753993636663,5.7227,174.79,174.77,7.73847068]
[1753993636866,3.03,174.78,174.77,7.73847068]
[1753993637166,8.7531,174.78,174.77,7.73847068]
[1753993637463,8.7531,174.78,174.76,3.21]
[1753993637464,3.03,174.78,174.76,3.21]
[1753993637659,5.7238,174.76,174.74,3.21]
[1753993637858,3.03,174.75,174.74,3.21]
[1753993638567,3.03,174.75,174.72,3.21]
[1753993639462,3.03,174.75,174.7,3.21]
[1753993640065,3.03,174.75,174.71,3.21]
[1753993640664,3.03,174.72,174.71,3.21]
[1753993641164,8.755,174.72,174.71,3.21]
[1753993641467,8.755,174.72,174.69,4.52847068]
[1753993641668,8.755,174.72,174.69,7.73847068]
[1753993641963,8.7553,174.71,174.7,3.21]
[1753993642176,8.7553,174.71,174.63,107.76]
[1753993642177,3.03,174.7,174.64,4.52847068]
[1753993642362,3.03,174.66,174.62,4.52847068]
[1753993642556,3.03,174.68,174.63,3.21]
[1753993642760,3.03,174.68,174.65,3.21]
[1753993643263,3.03,174.72,174.67,3.21]
[1753993643466,3.03,174.69,174.66,3.21]
[1753993643960,107.68,174.7,174.66,3.21]
[1753993644161,3.03,174.67,174.66,3.21]
[1753993644361,107.68,174.7,174.66,3.21]
[1753993644668,107.68,174.7,174.67,4.52847068]
[1753993644873,107.68,174.7,174.6,4.52847068]
[1753993644874,107.68,174.7,174.65,4.52847068]
[1753993645166,3.03,174.69,174.65,7.73847068]
[1753993645368,3.03,174.69,174.65,3.21]
[1753993645568,5.7265,174.68,174.66,3.21]
[1753993645772,3.03,174.67,174.66,3.21]
[1753993646364,3.03,174.69,174.66,4.52847068]
[1753993646667,3.03,174.69,174.67,3.21]
[1753993647066,3.03,174.69,174.68,3.21]
[1753993649569,5.7257,174.7,174.64,4.52847068]
[1753993649867,3.27,174.68,174.67,3.08]
[1753993650067,5.726,174.69,174.64,10.25597068]
[1753993650273,3.27,174.67,174.66,3.08]
[1753993651767,3.27,174.67,174.65,3.08]
[1753993651968,3.27,174.67,174.63,3.08]
[1753993652274,5.7267,174.67,174.64,3.08]
[1753993652567,3.27,174.65,174.64,3.08]
[1753993653071,3.27,174.64,174.58,4.52847068]
[1753993653271,3.27,174.64,174.6,3.08]
[1753993653669,3.27,174.63,174.6,3.08]
[1753993653872,112.18847068,174.66,174.57,3.08]
[1753993653873,3.27,174.61,174.57,3.08]
[1753993654076,4.52847068,174.62,174.53,10.25937068]
[1753993654368,3.27,174.57,174.56,3.08]
[1753993654869,3.27,174.57,174.53,4.52847068]
[1753993655071,3.27,174.59,174.54,3.08]
[1753993655569,3.27,174.57,174.54,3.08]
[1753993655774,5.7299,174.57,174.54,3.08]
[1753993655965,3.27,174.55,174.54,3.08]
[1753993656773,3.27,174.57,174.47,3.08]
[1753993656971,3.27,174.57,174.51,3.08]
[1753993657167,5.7311,174.54,174.5,3.08]
[1753993657474,3.27,174.53,174.5,3.08]
[1753993657680,3.27,174.53,174.47,3.08]
[1753993657976,4.17600101,174.52,174.46,4.52847068]
[1753993658169,3.27,174.49,174.43,3.08]
[1753993658475,3.27,174.5,174.47,8.8129]
[1753993658676,3.27,174.51,174.46,4.52847068]
[1753993658978,3.27,174.51,174.48,3.08]
[1753993659179,3.27,174.5,174.48,3.08]
[1753993659380,3.27,174.49,174.48,3.08]
[1753993659876,110.93,174.56,174.48,4.52847068]
[1753993660080,7.43881435,174.55,174.52,4.52847068]
[1753993660271,4.16881435,174.54,174.53,3.08]
[1753993660474,3.27,174.57,174.55,3.08]
[1753993661077,3.27,174.6,174.54,4.52847068]
[1753993661380,3.27,174.58,174.57,3.08]
[1753993661979,3.27,174.6,174.57,3.08]
[1753993662180,3.27,174.59,174.57,3.08]
[1753993662482,3.27,174.58,174.54,4.52847068]
[1753993662684,3.27,174.58,174.54,13.33897068]
[1753993662983,3.27,174.6,174.54,8.8105]
[1753993663181,3.27,174.59,174.54,3.08]
[1753993663379,3.27,174.59,174.55,3.08]
[1753993663886,498.3483,174.61,174.56,3.08]
[1753993664180,3.27,174.6,174.56,3.08]
[1753993664378,3.27,174.6,174.54,3.08]
[1753993664578,5.7291,174.59,174.54,3.08]
[1753993664774,3.27,174.57,174.55,3.08]
[1753993664979,3.27,174.57,174.54,3.08]
[1753993665175,8.9986,174.6,174.54,3.08]
[1753993665778,3.27,174.6,174.56,3.08]
[1753993666384,3.27,174.6,174.58,3.08]
[1753993666688,3.27,174.6,174.59,3.08]
[1753993667079,107.66,174.61,174.59,3.08]
[1753993667484,3.27,174.6,174.59,3.08]
[1753993667983,110.93,174.61,174.57,12.47189787]